[Event "Titled Tuesday Blitz December 13 Early 2022"]
[White "Clawitter, Craig"]
[Black "Hoffmann, Asa"]
[WhiteFideId "2023105"]
[BlackFideId "2001470"]
[WhiteElo "2187"]
[BlackElo "2117"]
[Result "1-0"]
[Round "10"]
[TimeControl "180+1"]
[Date "2022.12.14"]
[WhiteClock "0:00:35"]
[BlackClock "0:02:16"]

1. e4 {[%clk 0:02:40]}  d6 {[%clk 0:02:59]} 2. d4 {[%clk 0:02:39]}  Nf6 {[%clk 0:02:58]} 3. Nc3 {[%clk 0:02:40]}  c6 {[%clk 0:02:58]} 4. f4 {[%clk 0:02:38]}  Qa5 {[%clk 0:02:57]} 5. e5 {[%clk 0:02:37]}  Ne4 {[%clk 0:02:54]} 6. Qf3 {[%clk 0:02:38]}  Bf5 {[%clk 0:02:53]} 7. Bd3 {[%clk 0:02:31]}  d5 {[%clk 0:02:53]} 8. Ne2 {[%clk 0:02:21]}  e6 {[%clk 0:02:51]} 9. g4 {[%clk 0:02:10]}  Nxc3 {[%clk 0:02:50]} 10. gxf5 {[%clk 0:01:57]}  Nxe2+ {[%clk 0:02:47]} 11. Kxe2 {[%clk 0:01:51]}  Qb6 {[%clk 0:02:32]} 12. fxe6 {[%clk 0:01:45]}  fxe6 {[%clk 0:02:32]} 13. Qh5+ {[%clk 0:01:42]}  Kd7 {[%clk 0:02:31]} 14. f5 {[%clk 0:01:14]}  exf5 {[%clk 0:02:27]} 15. Qf7+ {[%clk 0:00:41]}  Kd8 {[%clk 0:02:22]} 16. Bg5+ {[%clk 0:00:37]}  Kc8 {[%clk 0:02:18]} 17. Bxf5+ {[%clk 0:00:37]}  Nd7 {[%clk 0:02:17]} 18. Qxd7+ {[%clk 0:00:35]}  Kb8 {[%clk 0:02:16]} 19. Qc8# {[%clk 0:00:35]} 1-0


[Site "https://www.chess.com"]

[Event "Titled Tuesday Blitz December 13 Early 2022"]
[White "Daneshvar, Bardiya"]
[Black "Xiong, Jeffery"]
[WhiteFideId "12576468"]
[BlackFideId "2047640"]
[WhiteElo "2429"]
[BlackElo "2726"]
[Result "0-1"]
[Round "10"]
[TimeControl "180+1"]
[Date "2022.12.13"]
[WhiteClock "0:00:03"]
[BlackClock "0:00:05"]

1. Nf3 {[%clk 0:03:00]}  c5 {[%clk 0:02:59]} 2. c4 {[%clk 0:03:00]}  Nc6 {[%clk 0:02:57]} 3. Nc3 {[%clk 0:03:00]}  g6 {[%clk 0:02:57]} 4. e3 {[%clk 0:03:00]}  Bg7 {[%clk 0:02:49]} 5. d4 {[%clk 0:02:59]}  d6 {[%clk 0:02:49]} 6. Be2 {[%clk 0:02:58]}  Bg4 {[%clk 0:02:48]} 7. O-O {[%clk 0:02:50]}  Nh6 {[%clk 0:02:47]} 8. d5 {[%clk 0:02:48]}  Bxf3 {[%clk 0:02:41]} 9. Bxf3 {[%clk 0:02:44]}  Na5 {[%clk 0:02:42]} 10. e4 {[%clk 0:02:36]}  O-O {[%clk 0:02:41]} 11. Be2 {[%clk 0:02:35]}  f5 {[%clk 0:02:36]} 12. Bxh6 {[%clk 0:02:18]}  Bxh6 {[%clk 0:02:37]} 13. exf5 {[%clk 0:02:18]}  Rxf5 {[%clk 0:02:36]} 14. Bd3 {[%clk 0:02:18]}  Rf7 {[%clk 0:02:30]} 15. Re1 {[%clk 0:02:13]}  Qf8 {[%clk 0:02:29]} 16. f3 {[%clk 0:02:12]}  Qg7 {[%clk 0:02:28]} 17. Kh1 {[%clk 0:02:07]}  Bf4 {[%clk 0:02:18]} 18. g3 {[%clk 0:01:58]}  Be5 {[%clk 0:02:19]} 19. Rc1 {[%clk 0:01:58]}  g5 {[%clk 0:02:07]} 20. Kg2 {[%clk 0:01:48]}  Raf8 {[%clk 0:02:06]} 21. Rf1 {[%clk 0:01:46]}  Kh8 {[%clk 0:02:02]} 22. Qe2 {[%clk 0:01:37]}  a6 {[%clk 0:01:58]} 23. Nd1 {[%clk 0:01:27]}  Bd4 {[%clk 0:01:49]} 24. b3 {[%clk 0:01:20]}  b5 {[%clk 0:01:43]} 25. cxb5 {[%clk 0:01:16]}  axb5 {[%clk 0:01:44]} 26. Bxb5 {[%clk 0:01:17]}  Rf5 {[%clk 0:01:44]} 27. Qd2 {[%clk 0:01:03]}  Nb7 {[%clk 0:01:15]} 28. Bd3 {[%clk 0:00:52]}  Re5 {[%clk 0:01:04]} 29. h3 {[%clk 0:00:40]}  Nd8 {[%clk 0:01:04]} 30. Be4 {[%clk 0:00:38]}  e6 {[%clk 0:00:57]} 31. dxe6 {[%clk 0:00:32]}  d5 {[%clk 0:00:58]} 32. Bb1 {[%clk 0:00:27]}  Nxe6 {[%clk 0:00:58]} 33. Re1 {[%clk 0:00:27]}  Nf4+ {[%clk 0:00:52]} 34. Kh2 {[%clk 0:00:18]}  Rfe8 {[%clk 0:00:37]} 35. Rxe5 {[%clk 0:00:17]}  Rxe5 {[%clk 0:00:38]} 36. Bd3 {[%clk 0:00:09]}  Nxd3 {[%clk 0:00:27]} 37. Qxd3 {[%clk 0:00:10]}  Qe7 {[%clk 0:00:27]} 38. Rc2 {[%clk 0:00:09]}  Re1 {[%clk 0:00:24]} 39. Nf2 {[%clk 0:00:10]}  Qe5 {[%clk 0:00:20]} 40. Ng4 {[%clk 0:00:08]}  Qe6 {[%clk 0:00:16]} 41. Qd2 {[%clk 0:00:04]}  h5 {[%clk 0:00:15]} 42. Nf2 {[%clk 0:00:04]}  Re3 {[%clk 0:00:15]} 43. Nd1 {[%clk 0:00:03]}  Re1 {[%clk 0:00:11]} 44. Qxg5 {[%clk 0:00:02]}  Rxd1 {[%clk 0:00:09]} 45. Qxh5+ {[%clk 0:00:03]}  Kg7 {[%clk 0:00:09]} 46. Qg5+ {[%clk 0:00:03]}  Kf8 {[%clk 0:00:09]} 47. Qf4+ {[%clk 0:00:02]}  Ke8 {[%clk 0:00:09]} 48. Qb8+ {[%clk 0:00:02]}  Kf7 {[%clk 0:00:08]} 49. Qf4+ {[%clk 0:00:02]}  Kg6 {[%clk 0:00:08]} 50. h4 {[%clk 0:00:02]}  Re1 {[%clk 0:00:07]} 51. h5+ {[%clk 0:00:02]}  Kxh5 {[%clk 0:00:06]} 52. Rg2 {[%clk 0:00:02]}  Kg6 {[%clk 0:00:06]} 53. Qb8 {[%clk 0:00:02]}  Qf7 {[%clk 0:00:05]} 54. Qd6+ {[%clk 0:00:02]}  Re6 {[%clk 0:00:04]} 55. Qd8 {[%clk 0:00:01]}  Qh7+ {[%clk 0:00:04]} 56. Qh4 {[%clk 0:00:02]}  Qxh4+ {[%clk 0:00:03]} 57. gxh4+ {[%clk 0:00:02]}  Kf5 {[%clk 0:00:04]} 58. Rg5+ {[%clk 0:00:03]}  Kf4 {[%clk 0:00:05]} 59. Rxd5 {[%clk 0:00:04]}  Kxf3 {[%clk 0:00:05]} 60. b4 {[%clk 0:00:04]}  Re2+ {[%clk 0:00:04]} 61. Kh3 {[%clk 0:00:05]}  Be5 {[%clk 0:00:04]} 62. Rd3+ {[%clk 0:00:04]}  Ke4 {[%clk 0:00:04]} 63. Rd1 {[%clk 0:00:04]}  cxb4 {[%clk 0:00:04]} 64. Rb1 {[%clk 0:00:03]}  Bd6 {[%clk 0:00:04]} 65. h5 {[%clk 0:00:03]}  Rxa2 {[%clk 0:00:04]} 66. Kg4 {[%clk 0:00:03]}  Rg2+ {[%clk 0:00:04]} 67. Kh4 {[%clk 0:00:04]}  Rh2+ {[%clk 0:00:05]} 68. Kg5 {[%clk 0:00:04]}  Bf4+ {[%clk 0:00:05]} 69. Kg6 {[%clk 0:00:04]}  Bd2 {[%clk 0:00:06]} 70. Rb2 {[%clk 0:00:03]}  Kd3 {[%clk 0:00:05]} 71. Rb3+ {[%clk 0:00:03]}  Kc4 {[%clk 0:00:05]} 72. Rb1 {[%clk 0:00:04]}  b3 {[%clk 0:00:05]} 73. Rg1 {[%clk 0:00:03]}  b2 {[%clk 0:00:05]} 0-1


[Site "https://www.chess.com"]

[Event "Titled Tuesday Blitz December 13 Early 2022"]
[White "Derraugh, Geordie"]
[Black "Muminova, Nafisa"]
[WhiteFideId "2603950"]
[BlackFideId "14201526"]
[WhiteElo "2082"]
[BlackElo "2258"]
[Result "1-0"]
[Round "10"]
[TimeControl "180+1"]
[Date "2022.12.14"]
[WhiteClock "0:00:08"]
[BlackClock "0:00:08"]

1. e4 {[%clk 0:02:57]}  e6 {[%clk 0:02:59]} 2. d4 {[%clk 0:02:57]}  d5 {[%clk 0:02:59]} 3. Nc3 {[%clk 0:02:58]}  Nf6 {[%clk 0:02:58]} 4. Bg5 {[%clk 0:02:58]}  Be7 {[%clk 0:02:57]} 5. e5 {[%clk 0:02:57]}  Nfd7 {[%clk 0:02:57]} 6. h4 {[%clk 0:02:57]}  Bxg5 {[%clk 0:02:47]} 7. hxg5 {[%clk 0:02:57]}  Qxg5 {[%clk 0:02:47]} 8. Nh3 {[%clk 0:02:55]}  Qe7 {[%clk 0:02:46]} 9. Nf4 {[%clk 0:02:55]}  a6 {[%clk 0:02:44]} 10. Qg4 {[%clk 0:02:51]}  g6 {[%clk 0:02:31]} 11. O-O-O {[%clk 0:02:37]}  c5 {[%clk 0:02:18]} 12. dxc5 {[%clk 0:02:02]}  Nxe5 {[%clk 0:02:03]} 13. Qg3 {[%clk 0:01:54]}  Nbc6 {[%clk 0:01:59]} 14. Nfxd5 {[%clk 0:01:48]}  exd5 {[%clk 0:01:57]} 15. Nxd5 {[%clk 0:01:49]}  Qxc5 {[%clk 0:01:32]} 16. Nc7+ {[%clk 0:01:45]}  Kf8 {[%clk 0:01:32]} 17. Nxa8 {[%clk 0:01:38]}  Bf5 {[%clk 0:01:26]} 18. Qc3 {[%clk 0:01:24]}  Qxf2 {[%clk 0:01:07]} 19. Nc7 {[%clk 0:01:11]}  Qf4+ {[%clk 0:01:05]} 20. Kb1 {[%clk 0:01:10]}  Kg7 {[%clk 0:00:58]} 21. Nd5 {[%clk 0:01:02]}  Qf2 {[%clk 0:00:55]} 22. Ne3 {[%clk 0:00:35]}  Be4 {[%clk 0:00:41]} 23. Bc4 {[%clk 0:00:30]}  b5 {[%clk 0:00:28]} 24. Rhf1 {[%clk 0:00:28]}  Qg3 {[%clk 0:00:15]} 25. Rxf7+ {[%clk 0:00:28]}  Kh6 {[%clk 0:00:15]} 26. Rh1+ {[%clk 0:00:22]}  Kg5 {[%clk 0:00:15]} 27. Qd2 {[%clk 0:00:18]}  Rd8 {[%clk 0:00:12]} 28. Nd5+ {[%clk 0:00:17]}  Kg4 {[%clk 0:00:11]} 29. Nf6+ {[%clk 0:00:17]}  Kf5 {[%clk 0:00:09]} 30. Rf1+ {[%clk 0:00:10]}  Nf3 {[%clk 0:00:09]} 31. Nd7+ {[%clk 0:00:08]}  Kg4 {[%clk 0:00:08]} 32. gxf3+ {[%clk 0:00:09]}  Bxf3 {[%clk 0:00:07]} 33. R7xf3 {[%clk 0:00:04]}  Qxf3 {[%clk 0:00:07]} 34. Rxf3 {[%clk 0:00:04]}  Kxf3 {[%clk 0:00:08]} 35. Qd5+ {[%clk 0:00:03]}  Kf2 {[%clk 0:00:08]} 36. Qxc6 {[%clk 0:00:03]}  bxc4 {[%clk 0:00:07]} 37. Qb6+ {[%clk 0:00:04]}  Ke2 {[%clk 0:00:07]} 38. Qxd8 {[%clk 0:00:05]}  g5 {[%clk 0:00:08]} 39. Qxg5 {[%clk 0:00:05]}  h6 {[%clk 0:00:06]} 40. Qxh6 {[%clk 0:00:05]}  Kd1 {[%clk 0:00:06]} 41. Qc6 {[%clk 0:00:05]}  c3 {[%clk 0:00:06]} 42. bxc3 {[%clk 0:00:05]}  a5 {[%clk 0:00:07]} 43. Qd5+ {[%clk 0:00:05]}  Ke1 {[%clk 0:00:07]} 44. c4 {[%clk 0:00:06]}  a4 {[%clk 0:00:06]} 45. c5 {[%clk 0:00:06]}  a3 {[%clk 0:00:07]} 46. c6 {[%clk 0:00:07]}  Ke2 {[%clk 0:00:07]} 47. c7 {[%clk 0:00:08]}  Ke1 {[%clk 0:00:08]} 48. c8=Q {[%clk 0:00:08]} 1-0


[Site "https://www.chess.com"]

[Event "Titled Tuesday Blitz December 13 Early 2022"]
[White "Domingo Nunez, Ruben"]
[Black "Salman, Pavel"]
[WhiteFideId "22245570"]
[BlackFideId "24153753"]
[WhiteElo "2663"]
[BlackElo "2528"]
[Result "1-0"]
[Round "10"]
[TimeControl "180+1"]
[Date "2022.12.14"]
[WhiteClock "0:00:57"]
[BlackClock "0:00:19"]

1. b3 {[%clk 0:03:00]}  c5 {[%clk 0:02:59]} 2. Bb2 {[%clk 0:03:01]}  b6 {[%clk 0:03:00]} 3. Nf3 {[%clk 0:03:02]}  Bb7 {[%clk 0:03:00]} 4. c4 {[%clk 0:03:03]}  Nf6 {[%clk 0:03:01]} 5. e3 {[%clk 0:03:03]}  e6 {[%clk 0:03:01]} 6. Be2 {[%clk 0:03:04]}  Be7 {[%clk 0:03:02]} 7. O-O {[%clk 0:03:05]}  O-O {[%clk 0:03:02]} 8. d4 {[%clk 0:03:05]}  cxd4 {[%clk 0:03:03]} 9. Nxd4 {[%clk 0:03:02]}  a6 {[%clk 0:03:02]} 10. Nc3 {[%clk 0:03:01]}  d6 {[%clk 0:03:02]} 11. Rc1 {[%clk 0:03:01]}  Nbd7 {[%clk 0:03:02]} 12. Qc2 {[%clk 0:02:51]}  Qc7 {[%clk 0:03:01]} 13. Rfd1 {[%clk 0:02:51]}  Rac8 {[%clk 0:03:01]} 14. h3 {[%clk 0:02:48]}  Rfd8 {[%clk 0:03:00]} 15. Bf3 {[%clk 0:02:44]}  Ne5 {[%clk 0:02:57]} 16. Bxb7 {[%clk 0:02:43]}  Qxb7 {[%clk 0:02:58]} 17. Qe2 {[%clk 0:02:44]}  Bf8 {[%clk 0:02:48]} 18. e4 {[%clk 0:02:07]}  Ng6 {[%clk 0:02:34]} 19. Qe3 {[%clk 0:01:56]}  Nd7 {[%clk 0:02:23]} 20. Nde2 {[%clk 0:01:48]}  Nc5 {[%clk 0:02:19]} 21. Nd4 {[%clk 0:01:32]}  Re8 {[%clk 0:02:10]} 22. Ba3 {[%clk 0:01:30]}  d5 {[%clk 0:01:41]} 23. exd5 {[%clk 0:01:11]}  exd5 {[%clk 0:01:42]} 24. Qf3 {[%clk 0:01:12]}  Ne4 {[%clk 0:00:59]} 25. Bxf8 {[%clk 0:01:08]}  Nxc3 {[%clk 0:00:59]} 26. Rxc3 {[%clk 0:01:04]}  Kxf8 {[%clk 0:00:53]} 27. Nf5 {[%clk 0:01:02]}  Re5 {[%clk 0:00:43]} 28. Nd6 {[%clk 0:01:00]}  Qd7 {[%clk 0:00:24]} 29. Nxc8 {[%clk 0:00:59]}  Qxc8 {[%clk 0:00:24]} 30. cxd5 {[%clk 0:00:58]}  Qd7 {[%clk 0:00:23]} 31. d6 {[%clk 0:00:57]}  Rf5 {[%clk 0:00:19]} 32. Qa8+ {[%clk 0:00:57]} 1-0


[Site "https://www.chess.com"]

[Event "Titled Tuesday Blitz December 13 Early 2022"]
[White "Estrada Nieto, Julian"]
[Black "Budrewicz, Krzysztof"]
[WhiteFideId "5101018"]
[BlackFideId "1127950"]
[WhiteElo "2195"]
[BlackElo "2188"]
[Result "0-1"]
[Round "10"]
[TimeControl "180+1"]
[Date "2022.12.14"]
[WhiteClock "0:00:02"]
[BlackClock "0:01:51"]

1. e4 {[%clk 0:03:00]}  g6 {[%clk 0:02:58]} 2. d4 {[%clk 0:03:00]}  Bg7 {[%clk 0:02:59]} 3. Nf3 {[%clk 0:03:01]}  d6 {[%clk 0:02:59]} 4. Nc3 {[%clk 0:03:00]}  a6 {[%clk 0:03:00]} 5. Be2 {[%clk 0:02:57]}  b5 {[%clk 0:03:00]} 6. a3 {[%clk 0:02:56]}  Nd7 {[%clk 0:03:00]} 7. O-O {[%clk 0:02:56]}  Bb7 {[%clk 0:03:00]} 8. Re1 {[%clk 0:02:55]}  e5 {[%clk 0:03:00]} 9. dxe5 {[%clk 0:02:44]}  Nxe5 {[%clk 0:02:59]} 10. Nxe5 {[%clk 0:02:43]}  dxe5 {[%clk 0:02:59]} 11. Bd3 {[%clk 0:02:41]}  Nf6 {[%clk 0:02:58]} 12. Bg5 {[%clk 0:02:40]}  h6 {[%clk 0:02:57]} 13. Bh4 {[%clk 0:02:40]}  O-O {[%clk 0:02:57]} 14. Qe2 {[%clk 0:02:26]}  c6 {[%clk 0:02:57]} 15. Rad1 {[%clk 0:02:25]}  Qe7 {[%clk 0:02:57]} 16. f3 {[%clk 0:01:59]}  Rfe8 {[%clk 0:02:53]} 17. Qe3 {[%clk 0:01:50]}  Bf8 {[%clk 0:02:50]} 18. Kh1 {[%clk 0:01:41]}  g5 {[%clk 0:02:49]} 19. Bg3 {[%clk 0:01:39]}  Nh5 {[%clk 0:02:49]} 20. Ne2 {[%clk 0:01:39]}  Nf4 {[%clk 0:02:47]} 21. c3 {[%clk 0:01:26]}  c5 {[%clk 0:02:43]} 22. Bc2 {[%clk 0:01:21]}  Red8 {[%clk 0:02:41]} 23. Nc1 {[%clk 0:01:15]}  c4 {[%clk 0:02:38]} 24. Bf2 {[%clk 0:01:12]}  Qe6 {[%clk 0:02:33]} 25. Qb6 {[%clk 0:01:08]}  Qxb6 {[%clk 0:02:25]} 26. Bxb6 {[%clk 0:01:08]}  Rxd1 {[%clk 0:02:25]} 27. Rxd1 {[%clk 0:01:08]}  Bc6 {[%clk 0:02:26]} 28. g3 {[%clk 0:01:04]}  Ne6 {[%clk 0:02:25]} 29. Kg2 {[%clk 0:01:02]}  Be7 {[%clk 0:02:23]} 30. Na2 {[%clk 0:00:53]}  a5 {[%clk 0:02:18]} 31. Nc1 {[%clk 0:00:45]}  b4 {[%clk 0:02:15]} 32. axb4 {[%clk 0:00:42]}  axb4 {[%clk 0:02:15]} 33. cxb4 {[%clk 0:00:42]}  Bxb4 {[%clk 0:02:14]} 34. Ne2 {[%clk 0:00:42]}  Ra2 {[%clk 0:02:11]} 35. Rb1 {[%clk 0:00:18]}  Kf8 {[%clk 0:02:10]} 36. Kf1 {[%clk 0:00:17]}  Ke7 {[%clk 0:02:10]} 37. Be3 {[%clk 0:00:18]}  f6 {[%clk 0:02:08]} 38. Bc1 {[%clk 0:00:17]}  Nd4 {[%clk 0:02:06]} 39. Bd1 {[%clk 0:00:14]}  Nxf3 {[%clk 0:01:57]} 40. Nc3 {[%clk 0:00:14]}  Nxh2+ {[%clk 0:01:54]} 41. Kg2 {[%clk 0:00:12]}  Bxc3 {[%clk 0:01:54]} 42. Kxh2 {[%clk 0:00:11]}  Bxe4 {[%clk 0:01:54]} 43. Kh3 {[%clk 0:00:02]}  Bxb1 {[%clk 0:01:51]} 44. bxc3 {[%clk 0:00:02]}  Bf5+ {[%clk 0:01:51]} 45. g4 {[%clk 0:00:01]}  Ra1 {[%clk 0:01:51]} 46. Be3 {[%clk 0:00:01]}  Rxd1 {[%clk 0:01:50]} 47. gxf5 {[%clk 0:00:02]}  Rd3 {[%clk 0:01:51]} 0-1


[Site "https://www.chess.com"]

[Event "Titled Tuesday Blitz December 13 Early 2022"]
[White "Fiedorek, Michal"]
[Black "Kuderinov, Kirill"]
[WhiteFideId "1199528"]
[BlackFideId "13701568"]
[WhiteElo "2463"]
[BlackElo "2644"]
[Result "0-1"]
[Round "10"]
[TimeControl "180+1"]
[Date "2022.12.14"]
[WhiteClock "0:00:01"]
[BlackClock "0:00:20"]

1. e4 {[%clk 0:03:00]}  e5 {[%clk 0:02:58]} 2. Nf3 {[%clk 0:03:00]}  Nc6 {[%clk 0:02:59]} 3. Bb5 {[%clk 0:03:00]}  a6 {[%clk 0:02:58]} 4. Ba4 {[%clk 0:03:01]}  Nf6 {[%clk 0:02:57]} 5. O-O {[%clk 0:03:01]}  Be7 {[%clk 0:02:57]} 6. Re1 {[%clk 0:03:01]}  b5 {[%clk 0:02:56]} 7. Bb3 {[%clk 0:03:02]}  O-O {[%clk 0:02:56]} 8. a4 {[%clk 0:03:00]}  Rb8 {[%clk 0:02:54]} 9. axb5 {[%clk 0:02:57]}  axb5 {[%clk 0:02:55]} 10. c3 {[%clk 0:02:58]}  d6 {[%clk 0:02:55]} 11. d4 {[%clk 0:02:55]}  exd4 {[%clk 0:02:48]} 12. cxd4 {[%clk 0:02:54]}  Bg4 {[%clk 0:02:48]} 13. Nc3 {[%clk 0:02:51]}  b4 {[%clk 0:02:44]} 14. Nd5 {[%clk 0:02:50]}  Bxf3 {[%clk 0:02:43]} 15. gxf3 {[%clk 0:02:50]}  Rb7 {[%clk 0:02:24]} 16. Be3 {[%clk 0:02:22]}  Nb8 {[%clk 0:02:19]} 17. Qd2 {[%clk 0:02:18]}  Nbd7 {[%clk 0:02:17]} 18. Ra4 {[%clk 0:02:12]}  Nxd5 {[%clk 0:02:02]} 19. Bxd5 {[%clk 0:02:11]}  Rb8 {[%clk 0:02:01]} 20. Rxb4 {[%clk 0:02:09]}  Rxb4 {[%clk 0:01:59]} 21. Qxb4 {[%clk 0:02:09]}  Bg5 {[%clk 0:01:57]} 22. f4 {[%clk 0:01:58]}  Bh6 {[%clk 0:01:54]} 23. e5 {[%clk 0:01:51]}  dxe5 {[%clk 0:01:50]} 24. fxe5 {[%clk 0:01:39]}  Nxe5 {[%clk 0:01:28]} 25. Bxh6 {[%clk 0:01:37]}  Nd3 {[%clk 0:01:28]} 26. Qb3 {[%clk 0:00:47]}  Nxe1 {[%clk 0:01:26]} 27. Qg3 {[%clk 0:00:47]}  Qf6 {[%clk 0:01:21]} 28. Bf4 {[%clk 0:00:47]}  Rd8 {[%clk 0:01:09]} 29. Be5 {[%clk 0:00:43]}  Qg6 {[%clk 0:01:08]} 30. Be4 {[%clk 0:00:43]}  Qxg3+ {[%clk 0:01:01]} 31. hxg3 {[%clk 0:00:43]}  f6 {[%clk 0:00:54]} 32. Bxc7 {[%clk 0:00:38]}  Rxd4 {[%clk 0:00:54]} 33. f3 {[%clk 0:00:35]}  Nd3 {[%clk 0:00:49]} 34. Ba5 {[%clk 0:00:32]}  Nc5 {[%clk 0:00:45]} 35. Bc2 {[%clk 0:00:19]}  Rc4 {[%clk 0:00:42]} 36. Bc3 {[%clk 0:00:18]}  Ne6 {[%clk 0:00:38]} 37. Bb3 {[%clk 0:00:16]}  Rc6 {[%clk 0:00:39]} 38. Kf2 {[%clk 0:00:15]}  Kf7 {[%clk 0:00:39]} 39. Ke3 {[%clk 0:00:16]}  Ke7 {[%clk 0:00:37]} 40. Bb4+ {[%clk 0:00:15]}  Kf7 {[%clk 0:00:36]} 41. Bc3 {[%clk 0:00:16]}  g6 {[%clk 0:00:36]} 42. Ba2 {[%clk 0:00:13]}  h5 {[%clk 0:00:35]} 43. Bd5 {[%clk 0:00:13]}  Rc5 {[%clk 0:00:34]} 44. Ba2 {[%clk 0:00:09]}  g5 {[%clk 0:00:34]} 45. f4 {[%clk 0:00:06]}  gxf4+ {[%clk 0:00:32]} 46. gxf4 {[%clk 0:00:06]}  Rb5 {[%clk 0:00:32]} 47. Kf3 {[%clk 0:00:04]}  f5 {[%clk 0:00:31]} 48. Bc4 {[%clk 0:00:04]}  Rb6 {[%clk 0:00:31]} 49. Bd3 {[%clk 0:00:04]}  Kg6 {[%clk 0:00:31]} 50. Bc4 {[%clk 0:00:03]}  Nc5 {[%clk 0:00:31]} 51. b4 {[%clk 0:00:01]}  Ne4 {[%clk 0:00:30]} 52. Be1 {[%clk 0:00:01]}  Rc6 {[%clk 0:00:29]} 53. Bd5 {[%clk 0:00:01]}  Rc1 {[%clk 0:00:29]} 54. Bh4 {[%clk 0:00:01]}  Rc3+ {[%clk 0:00:27]} 55. Kg2 {[%clk 0:00:01]}  Nf6 {[%clk 0:00:26]} 56. Be6 {[%clk 0:00:01]}  Rc2+ {[%clk 0:00:23]} 57. Kf3 {[%clk 0:00:01]}  Rb2 {[%clk 0:00:24]} 58. Be1 {[%clk 0:00:02]}  Ng4 {[%clk 0:00:22]} 59. Kg3 {[%clk 0:00:02]}  Rb1 {[%clk 0:00:21]} 60. Bd2 {[%clk 0:00:02]}  Rb2 {[%clk 0:00:21]} 61. Bc3 {[%clk 0:00:02]}  Re2 {[%clk 0:00:20]} 62. Kh3 {[%clk 0:00:01]}  Re3+ {[%clk 0:00:20]} 0-1


[Site "https://www.chess.com"]

[Event "Titled Tuesday Blitz December 13 Early 2022"]
[White "Gjestemoen-VonHirsch, Andre"]
[Black "Rangel, Daniel"]
[WhiteFideId "1539531"]
[BlackFideId "2124475"]
[WhiteElo "2198"]
[BlackElo "2225"]
[Result "0-1"]
[Round "10"]
[TimeControl "180+1"]
[Date "2022.12.14"]
[WhiteClock "0:00:08"]
[BlackClock "0:00:15"]

1. b3 {[%clk 0:03:00]}  d5 {[%clk 0:02:57]} 2. Bb2 {[%clk 0:03:01]}  Nf6 {[%clk 0:02:55]} 3. e3 {[%clk 0:02:59]}  c6 {[%clk 0:02:55]} 4. Nf3 {[%clk 0:02:56]}  Bg4 {[%clk 0:02:51]} 5. Be2 {[%clk 0:02:54]}  Nbd7 {[%clk 0:02:51]} 6. c4 {[%clk 0:02:54]}  e6 {[%clk 0:02:51]} 7. Nc3 {[%clk 0:02:53]}  Bd6 {[%clk 0:02:47]} 8. Rc1 {[%clk 0:02:37]}  O-O {[%clk 0:02:45]} 9. h3 {[%clk 0:02:32]}  Bh5 {[%clk 0:02:44]} 10. Rc2 {[%clk 0:02:30]}  Bg6 {[%clk 0:02:39]} 11. d3 {[%clk 0:02:29]}  e5 {[%clk 0:02:36]} 12. cxd5 {[%clk 0:02:22]}  cxd5 {[%clk 0:02:35]} 13. Qa1 {[%clk 0:02:14]}  Nc5 {[%clk 0:02:19]} 14. Rd2 {[%clk 0:02:03]}  d4 {[%clk 0:02:12]} 15. exd4 {[%clk 0:01:55]}  exd4 {[%clk 0:02:13]} 16. Nb5 {[%clk 0:01:55]}  Bf4 {[%clk 0:02:11]} 17. Rd1 {[%clk 0:01:51]}  Re8 {[%clk 0:02:09]} 18. Kf1 {[%clk 0:01:28]}  Rxe2 {[%clk 0:01:55]} 19. Kxe2 {[%clk 0:01:27]}  Qe8+ {[%clk 0:01:56]} 20. Kf1 {[%clk 0:01:26]}  Qxb5 {[%clk 0:01:56]} 21. Nxd4 {[%clk 0:01:17]}  Qa6 {[%clk 0:01:46]} 22. g3 {[%clk 0:01:11]}  Nxd3 {[%clk 0:01:31]} 23. Kg2 {[%clk 0:01:08]}  Be5 {[%clk 0:00:59]} 24. Bc3 {[%clk 0:00:43]}  Rd8 {[%clk 0:00:53]} 25. Nf3 {[%clk 0:00:40]}  Bxc3 {[%clk 0:00:37]} 26. Qxc3 {[%clk 0:00:39]}  Be4 {[%clk 0:00:38]} 27. Rd2 {[%clk 0:00:24]}  Qe6 {[%clk 0:00:30]} 28. Rhd1 {[%clk 0:00:16]}  Qf5 {[%clk 0:00:25]} 29. Rxd3 {[%clk 0:00:14]}  Rxd3 {[%clk 0:00:23]} 30. Rxd3 {[%clk 0:00:14]}  Bxd3 {[%clk 0:00:23]} 31. Qc7 {[%clk 0:00:14]}  h6 {[%clk 0:00:20]} 32. Nh4 {[%clk 0:00:13]}  Be4+ {[%clk 0:00:17]} 33. Kg1 {[%clk 0:00:12]}  Qd5 {[%clk 0:00:16]} 34. Ng2 {[%clk 0:00:08]}  Bxg2 {[%clk 0:00:15]} 0-1


[Site "https://www.chess.com"]

[Event "Titled Tuesday Blitz December 13 Early 2022"]
[White "Grunberg, Mihai-Lucian"]
[Black "Czopor, Maciej"]
[WhiteFideId "1204149"]
[BlackFideId "21805431"]
[WhiteElo "2363"]
[BlackElo "2324"]
[Result "0-1"]
[Round "10"]
[TimeControl "180+1"]
[Date "2022.12.14"]
[WhiteClock "0:01:18"]
[BlackClock "0:01:42"]

1. Nf3 {[%clk 0:03:00]}  g6 {[%clk 0:03:00]} 2. d4 {[%clk 0:02:48]}  Bg7 {[%clk 0:03:00]} 3. c4 {[%clk 0:02:48]}  Nf6 {[%clk 0:03:00]} 4. g3 {[%clk 0:02:49]}  O-O {[%clk 0:03:00]} 5. Bg2 {[%clk 0:02:49]}  d6 {[%clk 0:03:01]} 6. O-O {[%clk 0:02:50]}  Nc6 {[%clk 0:03:00]} 7. Nc3 {[%clk 0:02:50]}  Bg4 {[%clk 0:03:01]} 8. b3 {[%clk 0:02:47]}  Nd7 {[%clk 0:02:57]} 9. e3 {[%clk 0:02:41]}  e5 {[%clk 0:02:57]} 10. Ne2 {[%clk 0:02:33]}  Qf6 {[%clk 0:02:45]} 11. dxe5 {[%clk 0:02:21]}  Ndxe5 {[%clk 0:02:35]} 12. Nxe5 {[%clk 0:02:18]}  Nxe5 {[%clk 0:02:33]} 13. Rb1 {[%clk 0:01:58]}  Nf3+ {[%clk 0:02:12]} 14. Kh1 {[%clk 0:01:57]}  Qf5 {[%clk 0:02:12]} 15. Bb2 {[%clk 0:01:46]}  Qh5 {[%clk 0:02:07]} 16. h3 {[%clk 0:01:29]}  Ng5 {[%clk 0:01:44]} 17. h4 {[%clk 0:01:18]}  Bxe2 {[%clk 0:01:42]} 0-1


[Site "https://www.chess.com"]